[Event "Titled Tuesday Blitz December 13 Early 2022"]
[White "Lopez Idarraga, Daniel Eduardo"]
[Black "Lacasa Diaz, Jose Antonio"]
[WhiteFideId "4405501"]
[BlackFideId "2203375"]
[WhiteElo "2064"]
[BlackElo "2338"]
[Result "1/2-1/2"]
[Round "05"]
[TimeControl "180+1"]
[Date "2022.12.14"]
[WhiteClock "0:00:43"]
[BlackClock "0:00:18"]

1. b3 {[%clk 0:02:55]}  Nf6 {[%clk 0:02:52]} 2. Bb2 {[%clk 0:02:56]}  e6 {[%clk 0:02:52]} 3. Nf3 {[%clk 0:02:45]}  d5 {[%clk 0:02:52]} 4. g3 {[%clk 0:02:46]}  Be7 {[%clk 0:02:52]} 5. Bg2 {[%clk 0:02:47]}  c5 {[%clk 0:02:52]} 6. O-O {[%clk 0:02:48]}  Nc6 {[%clk 0:02:52]} 7. d3 {[%clk 0:02:49]}  O-O {[%clk 0:02:51]} 8. Nbd2 {[%clk 0:02:50]}  b6 {[%clk 0:02:48]} 9. e4 {[%clk 0:02:51]}  a5 {[%clk 0:02:33]} 10. a4 {[%clk 0:02:49]}  Ba6 {[%clk 0:02:32]} 11. Re1 {[%clk 0:02:44]}  Rc8 {[%clk 0:02:21]} 12. Ne5 {[%clk 0:02:41]}  Nxe5 {[%clk 0:02:16]} 13. Bxe5 {[%clk 0:02:42]}  dxe4 {[%clk 0:02:07]} 14. Nxe4 {[%clk 0:02:39]}  Nxe4 {[%clk 0:02:01]} 15. Bxe4 {[%clk 0:02:40]}  Bf6 {[%clk 0:01:58]} 16. Bxf6 {[%clk 0:02:29]}  Qxf6 {[%clk 0:01:59]} 17. Qh5 {[%clk 0:02:26]}  g6 {[%clk 0:01:57]} 18. Qf3 {[%clk 0:02:27]}  Qxf3 {[%clk 0:01:50]} 19. Bxf3 {[%clk 0:02:28]}  Rcd8 {[%clk 0:01:46]} 20. Re5 {[%clk 0:02:26]}  Rd6 {[%clk 0:01:39]} 21. Rae1 {[%clk 0:02:25]}  Rfd8 {[%clk 0:01:37]} 22. h4 {[%clk 0:02:24]}  h6 {[%clk 0:01:33]} 23. g4 {[%clk 0:02:23]}  Kg7 {[%clk 0:01:31]} 24. Kg2 {[%clk 0:02:22]}  Bc8 {[%clk 0:01:25]} 25. Kg3 {[%clk 0:02:21]}  f6 {[%clk 0:01:08]} 26. R5e3 {[%clk 0:02:18]}  g5 {[%clk 0:01:08]} 27. hxg5 {[%clk 0:02:17]}  hxg5 {[%clk 0:01:05]} 28. Bg2 {[%clk 0:02:14]}  e5 {[%clk 0:01:04]} 29. Be4 {[%clk 0:02:13]}  Rh8 {[%clk 0:01:03]} 30. Rg1 {[%clk 0:02:06]}  Rdd8 {[%clk 0:01:00]} 31. Ree1 {[%clk 0:02:05]}  Rh4 {[%clk 0:00:59]} 32. Bf3 {[%clk 0:02:02]}  Rdh8 {[%clk 0:00:56]} 33. Rh1 {[%clk 0:02:01]}  Kf8 {[%clk 0:00:54]} 34. Rxh4 {[%clk 0:02:01]}  Rxh4 {[%clk 0:00:54]} 35. Rh1 {[%clk 0:02:00]}  Rxh1 {[%clk 0:00:54]} 36. Bxh1 {[%clk 0:02:00]}  Ke7 {[%clk 0:00:54]} 37. Be4 {[%clk 0:01:57]}  Kd6 {[%clk 0:00:52]} 38. c4 {[%clk 0:01:56]}  Bd7 {[%clk 0:00:49]} 39. Bf5 {[%clk 0:01:55]}  Bc6 {[%clk 0:00:47]} 40. f3 {[%clk 0:01:53]}  Be8 {[%clk 0:00:43]} 41. Kf2 {[%clk 0:01:53]}  Bf7 {[%clk 0:00:42]} 42. Ke3 {[%clk 0:01:53]}  Be8 {[%clk 0:00:43]} 43. Bc8 {[%clk 0:01:51]}  Bc6 {[%clk 0:00:41]} 44. Bf5 {[%clk 0:01:47]}  Bb7 {[%clk 0:00:40]} 45. Be4 {[%clk 0:01:47]}  Bc8 {[%clk 0:00:40]} 46. Bd5 {[%clk 0:01:47]}  Bd7 {[%clk 0:00:35]} 47. Ke4 {[%clk 0:01:46]}  Bc8 {[%clk 0:00:34]} 48. Ba8 {[%clk 0:01:33]}  Bd7 {[%clk 0:00:32]} 49. Bb7 {[%clk 0:01:32]}  Be6 {[%clk 0:00:30]} 50. Bd5 {[%clk 0:01:31]}  Bc8 {[%clk 0:00:30]} 51. Ke3 {[%clk 0:01:29]}  f5 {[%clk 0:00:28]} 52. gxf5 {[%clk 0:01:26]}  Bxf5 {[%clk 0:00:27]} 53. Be4 {[%clk 0:01:26]}  Bh3 {[%clk 0:00:26]} 54. Kf2 {[%clk 0:01:24]}  Ke7 {[%clk 0:00:24]} 55. Bg6 {[%clk 0:01:22]}  Kf6 {[%clk 0:00:22]} 56. Bh5 {[%clk 0:01:23]}  Bf5 {[%clk 0:00:19]} 57. Ke3 {[%clk 0:01:21]}  Ke7 {[%clk 0:00:19]} 58. Bg4 {[%clk 0:01:20]}  Bg6 {[%clk 0:00:19]} 59. Bc8 {[%clk 0:01:18]}  Kd6 {[%clk 0:00:20]} 60. Bb7 {[%clk 0:01:18]}  Ke6 {[%clk 0:00:19]} 61. Be4 {[%clk 0:01:16]}  Bh5 {[%clk 0:00:20]} 62. Kf2 {[%clk 0:01:16]}  g4 {[%clk 0:00:19]} 63. fxg4 {[%clk 0:01:11]}  Bxg4 {[%clk 0:00:18]} 64. Bf3 {[%clk 0:01:12]}  Bf5 {[%clk 0:00:18]} 65. Ke3 {[%clk 0:01:11]}  Kf6 {[%clk 0:00:17]} 66. Bg2 {[%clk 0:01:05]}  Bg4 {[%clk 0:00:17]} 67. Bf3 {[%clk 0:00:43]}  Bf5 {[%clk 0:00:17]} 68. Be4 {[%clk 0:00:42]}  Bg4 {[%clk 0:00:17]} 69. Bf3 {[%clk 0:00:43]}  Bf5 {[%clk 0:00:18]} 1/2-1/2


[Site "https://www.chess.com"]

[Event "Titled Tuesday Blitz December 13 Early 2022"]
[White "Madaminov, Mukhiddin"]
[Black "Shuvalova, Polina"]
[WhiteFideId "14210703"]
[BlackFideId "24171760"]
[WhiteElo "2817"]
[BlackElo "2632"]
[Result "1-0"]
[Round "05"]
[TimeControl "180+1"]
[Date "2022.12.14"]
[WhiteClock "0:00:17"]
[BlackClock "0:00:14"]

1. d4 {[%clk 0:03:00]}  Nf6 {[%clk 0:02:58]} 2. Nc3 {[%clk 0:03:00]}  d5 {[%clk 0:02:58]} 3. Bf4 {[%clk 0:03:00]}  a6 {[%clk 0:02:58]} 4. e3 {[%clk 0:02:58]}  c5 {[%clk 0:02:58]} 5. dxc5 {[%clk 0:02:58]}  Nc6 {[%clk 0:02:55]} 6. a3 {[%clk 0:02:57]}  e5 {[%clk 0:02:35]} 7. Bg5 {[%clk 0:02:54]}  d4 {[%clk 0:02:35]} 8. exd4 {[%clk 0:02:49]}  exd4 {[%clk 0:02:35]} 9. Ne4 {[%clk 0:02:46]}  Be7 {[%clk 0:02:25]} 10. Bxf6 {[%clk 0:02:44]}  gxf6 {[%clk 0:02:25]} 11. Bd3 {[%clk 0:02:42]}  Rg8 {[%clk 0:02:19]} 12. Ng3 {[%clk 0:02:40]}  Qd5 {[%clk 0:02:12]} 13. Bxh7 {[%clk 0:02:36]}  Rh8 {[%clk 0:02:10]} 14. Be4 {[%clk 0:02:35]}  Qxc5 {[%clk 0:02:11]} 15. Nf3 {[%clk 0:02:34]}  Bg4 {[%clk 0:01:59]} 16. h3 {[%clk 0:02:32]}  Be6 {[%clk 0:01:55]} 17. Qd3 {[%clk 0:02:04]}  O-O-O {[%clk 0:01:53]} 18. O-O-O {[%clk 0:02:05]}  Ne5 {[%clk 0:01:48]} 19. Nxe5 {[%clk 0:02:03]}  fxe5 {[%clk 0:01:48]} 20. Bf5 {[%clk 0:02:00]}  Rh6 {[%clk 0:01:27]} 21. Qf3 {[%clk 0:01:47]}  Kb8 {[%clk 0:01:07]} 22. Bxe6 {[%clk 0:01:46]}  Rxe6 {[%clk 0:01:00]} 23. Ne4 {[%clk 0:01:21]}  Qd5 {[%clk 0:00:55]} 24. Kb1 {[%clk 0:01:15]}  Rf8 {[%clk 0:00:47]} 25. g4 {[%clk 0:00:53]}  f5 {[%clk 0:00:47]} 26. gxf5 {[%clk 0:00:52]}  Ref6 {[%clk 0:00:47]} 27. Qe2 {[%clk 0:00:35]}  Rxf5 {[%clk 0:00:46]} 28. Rd3 {[%clk 0:00:36]}  Bh4 {[%clk 0:00:38]} 29. f3 {[%clk 0:00:36]}  Ka8 {[%clk 0:00:37]} 30. Rg1 {[%clk 0:00:36]}  R5f7 {[%clk 0:00:27]} 31. Rg4 {[%clk 0:00:34]}  Bd8 {[%clk 0:00:27]} 32. Rb3 {[%clk 0:00:33]}  Ka7 {[%clk 0:00:25]} 33. Rg6 {[%clk 0:00:32]}  Rf4 {[%clk 0:00:19]} 34. Rd6 {[%clk 0:00:31]}  Qg8 {[%clk 0:00:19]} 35. Nc5 {[%clk 0:00:17]}  R8f7 {[%clk 0:00:15]} 36. Rxb7+ {[%clk 0:00:16]}  Rxb7 {[%clk 0:00:14]} 37. Qxa6+ {[%clk 0:00:17]}  Kb8 {[%clk 0:00:14]} 38. Qxb7# {[%clk 0:00:17]} 1-0


[Site "https://www.chess.com"]

[Event "Titled Tuesday Blitz December 13 Early 2022"]
[White "Makhnev, Denis"]
[Black "Mikhailovsky, Vladimir"]
[WhiteFideId "13707647"]
[BlackFideId "34105414"]
[WhiteElo "2507"]
[BlackElo "2295"]
[Result "1-0"]
[Round "05"]
[TimeControl "180+1"]
[Date "2022.12.13"]
[WhiteClock "0:00:05"]
[BlackClock "0:00:03"]

1. d4 {[%clk 0:02:58]}  d6 {[%clk 0:03:00]} 2. Nf3 {[%clk 0:02:57]}  Nf6 {[%clk 0:03:00]} 3. g3 {[%clk 0:02:55]}  g6 {[%clk 0:03:00]} 4. Bg2 {[%clk 0:02:54]}  Bg7 {[%clk 0:03:01]} 5. c4 {[%clk 0:02:55]}  O-O {[%clk 0:03:01]} 6. O-O {[%clk 0:02:56]}  Bf5 {[%clk 0:03:02]} 7. Nh4 {[%clk 0:02:51]}  Be4 {[%clk 0:03:01]} 8. Nc3 {[%clk 0:02:46]}  Bxg2 {[%clk 0:03:01]} 9. Nxg2 {[%clk 0:02:47]}  d5 {[%clk 0:02:44]} 10. cxd5 {[%clk 0:02:42]}  Nxd5 {[%clk 0:02:44]} 11. e4 {[%clk 0:02:42]}  Nxc3 {[%clk 0:02:44]} 12. bxc3 {[%clk 0:02:43]}  c5 {[%clk 0:02:45]} 13. Be3 {[%clk 0:02:43]}  Nc6 {[%clk 0:02:38]} 14. d5 {[%clk 0:02:43]}  Na5 {[%clk 0:02:16]} 15. Bxc5 {[%clk 0:02:43]}  Bxc3 {[%clk 0:02:15]} 16. Rc1 {[%clk 0:02:43]}  Bg7 {[%clk 0:02:07]} 17. Qa4 {[%clk 0:02:43]}  b6 {[%clk 0:02:06]} 18. Bb4 {[%clk 0:02:41]}  Nb7 {[%clk 0:01:38]} 19. Rc6 {[%clk 0:02:38]}  Re8 {[%clk 0:01:34]} 20. Rfc1 {[%clk 0:02:36]}  Nd6 {[%clk 0:01:33]} 21. Qc2 {[%clk 0:01:58]}  Nb5 {[%clk 0:01:10]} 22. Qd3 {[%clk 0:01:56]}  Nd4 {[%clk 0:00:55]} 23. R6c4 {[%clk 0:01:53]}  e5 {[%clk 0:00:50]} 24. Ne3 {[%clk 0:01:42]}  Qd7 {[%clk 0:00:41]} 25. Kg2 {[%clk 0:01:37]}  Rac8 {[%clk 0:00:38]} 26. Rxc8 {[%clk 0:01:09]}  Rxc8 {[%clk 0:00:38]} 27. Rxc8+ {[%clk 0:01:10]}  Qxc8 {[%clk 0:00:39]} 28. Qc4 {[%clk 0:01:11]}  Qd7 {[%clk 0:00:32]} 29. d6 {[%clk 0:01:03]}  Bf8 {[%clk 0:00:16]} 30. Nd5 {[%clk 0:01:03]}  Kg7 {[%clk 0:00:12]} 31. Bc3 {[%clk 0:00:21]}  Nc6 {[%clk 0:00:12]} 32. Nb4 {[%clk 0:00:17]}  Nxb4 {[%clk 0:00:10]} 33. Bxb4 {[%clk 0:00:17]}  h5 {[%clk 0:00:06]} 34. Qc7 {[%clk 0:00:17]}  Qg4 {[%clk 0:00:02]} 35. f3 {[%clk 0:00:13]}  Qe6 {[%clk 0:00:03]} 36. d7 {[%clk 0:00:07]}  Qxa2+ {[%clk 0:00:03]} 37. Kh3 {[%clk 0:00:07]}  Qe6+ {[%clk 0:00:03]} 38. Kg2 {[%clk 0:00:07]}  Qa2+ {[%clk 0:00:03]} 39. Kf1 {[%clk 0:00:07]}  Qb1+ {[%clk 0:00:03]} 40. Ke2 {[%clk 0:00:06]}  Qxb4 {[%clk 0:00:02]} 41. d8=Q {[%clk 0:00:05]}  Bc5 {[%clk 0:00:03]} 42. Qxe5+ {[%clk 0:00:05]} 1-0


[Site "https://www.chess.com"]

[Event "Titled Tuesday Blitz December 13 Early 2022"]
[White "Maksimenko, Viktor"]
[Black "Begunov, Konstantin"]
[WhiteFideId "13710478"]
[BlackFideId "4118510"]
[WhiteElo "2277"]
[BlackElo "2141"]
[Result "1-0"]
[Round "05"]
[TimeControl "180+1"]
[Date "2022.12.14"]
[WhiteClock "0:02:18"]
[BlackClock "0:00:16"]

1. d4 {[%clk 0:03:00]}  d5 {[%clk 0:02:59]} 2. c4 {[%clk 0:03:00]}  c6 {[%clk 0:03:00]} 3. Nf3 {[%clk 0:03:00]}  Nf6 {[%clk 0:03:01]} 4. e3 {[%clk 0:03:01]}  a6 {[%clk 0:03:00]} 5. Nc3 {[%clk 0:02:58]}  Bg4 {[%clk 0:03:00]} 6. Qb3 {[%clk 0:02:53]}  b5 {[%clk 0:02:57]} 7. cxb5 {[%clk 0:02:50]}  Bxf3 {[%clk 0:02:57]} 8. bxc6 {[%clk 0:02:39]}  Be4 {[%clk 0:02:51]} 9. Qb7 {[%clk 0:02:37]}  Nxc6 {[%clk 0:01:39]} 10. Qxc6+ {[%clk 0:02:36]}  Nd7 {[%clk 0:01:15]} 11. Nxe4 {[%clk 0:02:35]}  dxe4 {[%clk 0:01:09]} 12. Qxe4 {[%clk 0:02:34]}  e6 {[%clk 0:01:08]} 13. Bd2 {[%clk 0:02:34]}  Rb8 {[%clk 0:01:07]} 14. Bc3 {[%clk 0:02:32]}  Bb4 {[%clk 0:01:07]} 15. Bd3 {[%clk 0:02:32]}  Bxc3+ {[%clk 0:01:03]} 16. bxc3 {[%clk 0:02:32]}  Qa5 {[%clk 0:01:03]} 17. O-O {[%clk 0:02:32]}  Qxc3 {[%clk 0:00:55]} 18. Rfc1 {[%clk 0:02:32]}  Qa3 {[%clk 0:00:53]} 19. h3 {[%clk 0:02:30]}  Ke7 {[%clk 0:00:29]} 20. Qh4+ {[%clk 0:02:29]}  f6 {[%clk 0:00:27]} 21. Bf1 {[%clk 0:02:24]}  h6 {[%clk 0:00:19]} 22. Qg3 {[%clk 0:02:22]}  Kf7 {[%clk 0:00:18]} 23. Rc7 {[%clk 0:02:20]}  Rhd8 {[%clk 0:00:18]} 24. Rxd7+ {[%clk 0:02:18]}  Rxd7 {[%clk 0:00:16]} 25. Qxb8 {[%clk 0:02:18]} 1-0


[Site "https://www.chess.com"]

[Event "Titled Tuesday Blitz December 13 Early 2022"]
[White "Manukyan, Sargis A."]
[Black "Klepikov, Nikita"]
[WhiteFideId "13303970"]
[BlackFideId "24145220"]
[WhiteElo "2187"]
[BlackElo "2025"]
[Result "1-0"]
[Round "05"]
[TimeControl "180+1"]
[Date "2022.12.14"]
[WhiteClock "0:00:16"]
[BlackClock "0:00:03"]

1. Nf3 {[%clk 0:02:59]}  Nf6 {[%clk 0:02:59]} 2. b3 {[%clk 0:02:59]}  d6 {[%clk 0:02:51]} 3. Bb2 {[%clk 0:03:00]}  e5 {[%clk 0:02:52]} 4. g3 {[%clk 0:02:56]}  b6 {[%clk 0:02:42]} 5. Bg2 {[%clk 0:02:55]}  Bb7 {[%clk 0:02:41]} 6. O-O {[%clk 0:02:51]}  g6 {[%clk 0:02:37]} 7. d3 {[%clk 0:02:47]}  Bg7 {[%clk 0:02:37]} 8. Nbd2 {[%clk 0:02:47]}  O-O {[%clk 0:02:36]} 9. e4 {[%clk 0:02:45]}  a5 {[%clk 0:02:34]} 10. a3 {[%clk 0:02:42]}  Nfd7 {[%clk 0:02:26]} 11. Nh4 {[%clk 0:02:35]}  Bf6 {[%clk 0:02:06]} 12. Ndf3 {[%clk 0:02:27]}  Nc5 {[%clk 0:02:04]} 13. Kh1 {[%clk 0:02:08]}  Bg7 {[%clk 0:01:51]} 14. Nd2 {[%clk 0:02:05]}  f5 {[%clk 0:01:45]} 15. exf5 {[%clk 0:01:55]}  gxf5 {[%clk 0:01:44]} 16. Bxb7 {[%clk 0:01:52]}  Nxb7 {[%clk 0:01:44]} 17. Qh5 {[%clk 0:01:37]}  f4 {[%clk 0:01:15]} 18. Ne4 {[%clk 0:01:28]}  Nd7 {[%clk 0:01:03]} 19. Rg1 {[%clk 0:01:10]}  Nf6 {[%clk 0:00:54]} 20. Qf3 {[%clk 0:00:56]}  Nxe4 {[%clk 0:00:21]} 21. dxe4 {[%clk 0:00:52]}  Kh8 {[%clk 0:00:13]} 22. Nf5 {[%clk 0:00:47]}  Bf6 {[%clk 0:00:06]} 23. gxf4 {[%clk 0:00:45]}  exf4 {[%clk 0:00:06]} 24. Rg7 {[%clk 0:00:24]}  Nc5 {[%clk 0:00:05]} 25. Rxh7+ {[%clk 0:00:21]}  Kxh7 {[%clk 0:00:04]} 26. Qh5+ {[%clk 0:00:20]}  Kg8 {[%clk 0:00:03]} 27. Rg1+ {[%clk 0:00:20]}  Bg5 {[%clk 0:00:03]} 28. Qg6# {[%clk 0:00:16]} 1-0


[Site "https://www.chess.com"]

[Event "Titled Tuesday Blitz December 13 Early 2022"]
[White "Martinez Ramirez, Lennis"]
[Black "Abdrlauf, Elham"]
[WhiteFideId "3509079"]
[BlackFideId "1533533"]
[WhiteElo "2618"]
[BlackElo "2809"]
[Result "0-1"]
[Round "05"]
[TimeControl "180+1"]
[Date "2022.12.14"]
[WhiteClock "0:00:06"]
[BlackClock "0:00:11"]

1. c4 {[%clk 0:03:00]}  e6 {[%clk 0:02:58]} 2. Nc3 {[%clk 0:03:00]}  d5 {[%clk 0:02:59]} 3. d4 {[%clk 0:02:59]}  Nf6 {[%clk 0:03:00]} 4. Nf3 {[%clk 0:02:59]}  c6 {[%clk 0:03:00]} 5. Bg5 {[%clk 0:02:58]}  Nbd7 {[%clk 0:02:59]} 6. e3 {[%clk 0:02:58]}  h6 {[%clk 0:03:00]} 7. Bh4 {[%clk 0:02:57]}  Be7 {[%clk 0:03:01]} 8. Qc2 {[%clk 0:02:56]}  O-O {[%clk 0:03:01]} 9. Rd1 {[%clk 0:02:56]}  b6 {[%clk 0:02:56]} 10. a3 {[%clk 0:02:55]}  Bb7 {[%clk 0:02:56]} 11. h3 {[%clk 0:02:51]}  Rc8 {[%clk 0:02:56]} 12. Qb1 {[%clk 0:02:50]}  c5 {[%clk 0:02:54]} 13. cxd5 {[%clk 0:02:39]}  Nxd5 {[%clk 0:02:54]} 14. Bxe7 {[%clk 0:02:34]}  Qxe7 {[%clk 0:02:55]} 15. Nxd5 {[%clk 0:02:34]}  Bxd5 {[%clk 0:02:55]} 16. Be2 {[%clk 0:02:34]}  cxd4 {[%clk 0:02:43]} 17. Rxd4 {[%clk 0:02:33]}  Nf6 {[%clk 0:02:32]} 18. O-O {[%clk 0:02:28]}  e5 {[%clk 0:02:24]} 19. Rd2 {[%clk 0:02:23]}  Be4 {[%clk 0:02:24]} 20. Qa2 {[%clk 0:02:18]}  Rfd8 {[%clk 0:02:14]} 21. Rfd1 {[%clk 0:02:18]}  Rxd2 {[%clk 0:02:14]} 22. Nxd2 {[%clk 0:02:17]}  Bd5 {[%clk 0:02:08]} 23. Bc4 {[%clk 0:02:03]}  Bxc4 {[%clk 0:01:48]} 24. Nxc4 {[%clk 0:02:04]}  Qe6 {[%clk 0:01:39]} 25. b3 {[%clk 0:02:04]}  Ne4 {[%clk 0:01:37]} 26. Qb2 {[%clk 0:01:51]}  b5 {[%clk 0:01:29]} 27. Na5 {[%clk 0:01:18]}  Qf5 {[%clk 0:01:15]} 28. b4 {[%clk 0:01:02]}  Ng3 {[%clk 0:00:34]} 29. Rd2 {[%clk 0:00:51]}  Ne4 {[%clk 0:00:29]} 30. Rc2 {[%clk 0:00:43]}  Rd8 {[%clk 0:00:25]} 31. Nc6 {[%clk 0:00:42]}  Re8 {[%clk 0:00:21]} 32. f3 {[%clk 0:00:40]}  Nd6 {[%clk 0:00:18]} 33. Rc5 {[%clk 0:00:39]}  Nc4 {[%clk 0:00:17]} 34. Qc1 {[%clk 0:00:35]}  a6 {[%clk 0:00:11]} 35. a4 {[%clk 0:00:33]}  Qd3 {[%clk 0:00:10]} 36. axb5 {[%clk 0:00:31]}  axb5 {[%clk 0:00:11]} 37. Rxb5 {[%clk 0:00:29]}  Nxe3 {[%clk 0:00:11]} 38. Rxe5 {[%clk 0:00:30]}  Rxe5 {[%clk 0:00:09]} 39. Nxe5 {[%clk 0:00:31]}  Qe2 {[%clk 0:00:10]} 40. Qc8+ {[%clk 0:00:17]}  Kh7 {[%clk 0:00:10]} 41. Qg4 {[%clk 0:00:09]}  Nxg4 {[%clk 0:00:10]} 42. Nxg4 {[%clk 0:00:10]}  Qe1+ {[%clk 0:00:10]} 43. Kh2 {[%clk 0:00:10]}  f5 {[%clk 0:00:10]} 44. b5 {[%clk 0:00:06]}  fxg4 {[%clk 0:00:10]} 45. hxg4 {[%clk 0:00:07]}  Qe5+ {[%clk 0:00:11]} 46. Kh3 {[%clk 0:00:06]}  Qxb5 {[%clk 0:00:12]} 47. f4 {[%clk 0:00:07]}  g5 {[%clk 0:00:12]} 48. f5 {[%clk 0:00:08]}  Qd3+ {[%clk 0:00:13]} 49. g3 {[%clk 0:00:09]}  Qe2 {[%clk 0:00:10]} 50. f6 {[%clk 0:00:08]}  Qf2 {[%clk 0:00:10]} 51. f7 {[%clk 0:00:08]}  Qg1 {[%clk 0:00:11]} 52. f8=N+ {[%clk 0:00:06]}  Kg8 {[%clk 0:00:11]} 0-1


[Site "https://www.chess.com"]

[Event "Titled Tuesday Blitz December 13 Early 2022"]
[White "Matveeva, Olga"]
[Black "Shuvalov, Evgenij"]
[WhiteFideId "24107018"]
[BlackFideId "4187237"]
[WhiteElo "2056"]
[BlackElo "2049"]
[Result "0-1"]
[Round "05"]
[TimeControl "180+1"]
[Date "2022.12.14"]
[WhiteClock "0:00:15"]
[BlackClock "0:00:20"]

1. d4 {[%clk 0:02:40]}  Nf6 {[%clk 0:02:59]} 2. c4 {[%clk 0:02:39]}  g6 {[%clk 0:02:59]} 3. Nf3 {[%clk 0:02:38]}  Bg7 {[%clk 0:02:58]} 4. g3 {[%clk 0:02:39]}  c6 {[%clk 0:02:58]} 5. Bg2 {[%clk 0:02:39]}  d5 {[%clk 0:02:58]} 6. b3 {[%clk 0:02:33]}  O-O {[%clk 0:02:56]} 7. O-O {[%clk 0:02:32]}  dxc4 {[%clk 0:02:56]} 8. bxc4 {[%clk 0:02:31]}  c5 {[%clk 0:02:56]} 9. Bb2 {[%clk 0:02:30]}  Qb6 {[%clk 0:02:54]} 10. Qb3 {[%clk 0:02:29]}  Nc6 {[%clk 0:02:53]} 11. Nbd2 {[%clk 0:02:12]}  Bf5 {[%clk 0:02:34]} 12. d5 {[%clk 0:02:04]}  Na5 {[%clk 0:02:26]} 13. Qxb6 {[%clk 0:02:00]}  axb6 {[%clk 0:02:26]} 14. Nh4 {[%clk 0:01:58]}  Bg4 {[%clk 0:02:08]} 15. e4 {[%clk 0:01:57]}  Nxe4 {[%clk 0:01:41]} 16. Bxg7 {[%clk 0:01:51]}  Nxd2 {[%clk 0:01:41]} 17. Bxf8 {[%clk 0:01:50]}  Nxf1 {[%clk 0:01:41]} 18. Bh6 {[%clk 0:01:49]}  f6 {[%clk 0:01:23]} 19. Bxf1 {[%clk 0:01:29]}  g5 {[%clk 0:01:22]} 20. Ng2 {[%clk 0:01:27]}  Kf7 {[%clk 0:01:20]} 21. Bd3 {[%clk 0:01:25]}  Bh5 {[%clk 0:01:15]} 22. h4 {[%clk 0:01:24]}  Bg6 {[%clk 0:01:15]} 23. Be2 {[%clk 0:01:23]}  Nb3 {[%clk 0:00:59]} 24. Rb1 {[%clk 0:01:23]}  Bxb1 {[%clk 0:00:58]} 25. axb3 {[%clk 0:01:22]}  Kg6 {[%clk 0:00:56]} 26. hxg5 {[%clk 0:00:50]}  fxg5 {[%clk 0:00:56]} 27. Bxg5 {[%clk 0:00:40]}  Kxg5 {[%clk 0:00:56]} 28. Nf4 {[%clk 0:00:40]}  Bc2 {[%clk 0:00:50]} 29. Ne6+ {[%clk 0:00:39]}  Kf6 {[%clk 0:00:49]} 30. g4 {[%clk 0:00:37]}  h6 {[%clk 0:00:42]} 31. f4 {[%clk 0:00:36]}  Bxb3 {[%clk 0:00:41]} 32. g5+ {[%clk 0:00:36]}  hxg5 {[%clk 0:00:42]} 33. fxg5+ {[%clk 0:00:36]}  Ke5 {[%clk 0:00:38]} 34. g6 {[%clk 0:00:33]}  b5 {[%clk 0:00:37]} 35. g7 {[%clk 0:00:30]}  Rg8 {[%clk 0:00:31]} 36. Bd3 {[%clk 0:00:26]}  Kf6 {[%clk 0:00:28]} 37. Bh7 {[%clk 0:00:25]}  Rxg7+ {[%clk 0:00:27]} 38. Nxg7 {[%clk 0:00:25]}  Kxg7 {[%clk 0:00:28]} 39. Be4 {[%clk 0:00:21]}  Bxc4 {[%clk 0:00:27]} 40. Kf2 {[%clk 0:00:20]}  Kf6 {[%clk 0:00:25]} 41. Ke3 {[%clk 0:00:20]}  Ke5 {[%clk 0:00:25]} 42. d6 {[%clk 0:00:19]}  exd6 {[%clk 0:00:25]} 43. Bxb7 {[%clk 0:00:19]}  d5 {[%clk 0:00:25]} 44. Kd2 {[%clk 0:00:19]}  d4 {[%clk 0:00:24]} 45. Kc2 {[%clk 0:00:20]}  Bd5 {[%clk 0:00:23]} 46. Ba6 {[%clk 0:00:19]}  Bc6 {[%clk 0:00:22]} 47. Bc8 {[%clk 0:00:19]}  Be4+ {[%clk 0:00:22]} 48. Kd2 {[%clk 0:00:18]}  c4 {[%clk 0:00:21]} 49. Ba6 {[%clk 0:00:18]}  Bc6 {[%clk 0:00:21]} 50. Bc8 {[%clk 0:00:17]}  b4 {[%clk 0:00:20]} 51. Ba6 {[%clk 0:00:17]}  Bd5 {[%clk 0:00:20]} 52. Bb5 {[%clk 0:00:17]}  b3 {[%clk 0:00:20]} 53. Kc1 {[%clk 0:00:16]}  c3 {[%clk 0:00:20]} 54. Bd3 {[%clk 0:00:16]}  Be4 {[%clk 0:00:20]} 55. Bc4 {[%clk 0:00:15]}  b2+ {[%clk 0:00:20]} 0-1


[Site "https://www.chess.com"]

[Event "Titled Tuesday Blitz December 13 Early 2022"]
[White "Mazurkiewicz, Michal"]
[Black "Ibarra Jerez, Jose Carlos"]
[WhiteFideId "1124943"]
[BlackFideId "2226332"]
[WhiteElo "2081"]
[BlackElo "2638"]
[Result "0-1"]
[Round "05"]
[TimeControl "180+1"]
[Date "2022.12.14"]
[WhiteClock "0:00:01"]
[BlackClock "0:01:29"]

1. e4 {[%clk 0:03:00]}  c5 {[%clk 0:02:59]} 2. Nf3 {[%clk 0:03:00]}  e6 {[%clk 0:02:59]} 3. d3 {[%clk 0:03:00]}  d5 {[%clk 0:02:59]} 4. Nbd2 {[%clk 0:03:00]}  Nc6 {[%clk 0:02:59]} 5. g3 {[%clk 0:03:00]}  g6 {[%clk 0:03:00]} 6. Bg2 {[%clk 0:03:01]}  Bg7 {[%clk 0:03:00]} 7. O-O {[%clk 0:03:00]}  Nf6 {[%clk 0:03:01]} 8. Re1 {[%clk 0:03:01]}  O-O {[%clk 0:03:01]} 9. Qe2 {[%clk 0:03:01]}  a5 {[%clk 0:03:01]} 10. h4 {[%clk 0:02:58]}  a4 {[%clk 0:02:58]} 11. a3 {[%clk 0:02:57]}  Re8 {[%clk 0:02:56]} 12. Nf1 {[%clk 0:02:55]}  e5 {[%clk 0:02:56]} 13. Bg5 {[%clk 0:02:39]}  Be6 {[%clk 0:02:30]} 14. Ne3 {[%clk 0:02:31]}  dxe4 {[%clk 0:02:26]} 15. dxe4 {[%clk 0:02:31]}  h6 {[%clk 0:02:26]} 16. Bxf6 {[%clk 0:02:31]}  Bxf6 {[%clk 0:02:26]} 17. c3 {[%clk 0:02:30]}  Bg7 {[%clk 0:02:23]} 18. Rad1 {[%clk 0:02:29]}  Qa5 {[%clk 0:02:24]} 19. Nd5 {[%clk 0:02:28]}  Rac8 {[%clk 0:02:21]} 20. Nd2 {[%clk 0:02:26]}  b5 {[%clk 0:02:21]} 21. Nf1 {[%clk 0:02:05]}  b4 {[%clk 0:02:20]} 22. Nfe3 {[%clk 0:02:03]}  bxc3 {[%clk 0:02:18]} 23. bxc3 {[%clk 0:02:04]}  Rb8 {[%clk 0:02:18]} 24. Nc4 {[%clk 0:02:02]}  Qa6 {[%clk 0:02:17]} 25. Nc7 {[%clk 0:02:00]}  Qxc4 {[%clk 0:02:16]} 26. Nxe8 {[%clk 0:01:42]}  Rxe8 {[%clk 0:02:13]} 27. Qxc4 {[%clk 0:01:35]}  Bxc4 {[%clk 0:02:12]} 28. Rd6 {[%clk 0:01:36]}  Rc8 {[%clk 0:02:10]} 29. Bh3 {[%clk 0:01:27]}  Rc7 {[%clk 0:02:11]} 30. h5 {[%clk 0:01:28]}  Bf8 {[%clk 0:02:10]} 31. Rd2 {[%clk 0:01:20]}  gxh5 {[%clk 0:02:07]} 32. Red1 {[%clk 0:01:12]}  Bb3 {[%clk 0:02:07]} 33. Rd7 {[%clk 0:01:08]}  Rxd7 {[%clk 0:02:08]} 34. Rxd7 {[%clk 0:01:08]}  c4 {[%clk 0:02:08]} 35. f4 {[%clk 0:00:46]}  Bxa3 {[%clk 0:02:07]} 36. Rc7 {[%clk 0:00:43]}  Bb2 {[%clk 0:01:37]} 37. Rxc6 {[%clk 0:00:17]}  a3 {[%clk 0:01:36]} 38. fxe5 {[%clk 0:00:07]}  a2 {[%clk 0:01:35]} 39. e6 {[%clk 0:00:07]}  a1=Q+ {[%clk 0:01:35]} 40. Kg2 {[%clk 0:00:07]}  fxe6 {[%clk 0:01:34]} 41. Bxe6+ {[%clk 0:00:07]}  Kf8 {[%clk 0:01:34]} 42. Rc7 {[%clk 0:00:01]}  Bxc3 {[%clk 0:01:29]} 0-1


[Site "https://www.chess.com"]